fUSD/lending_fUSD_20240712
["ID","MTS","AMOUNT","RATE_DAILY","PERIOD"]
[331771074,1720757468763,-500.0,0.00013897,2]
[331771075,1720757468772,-503.01,0.00013897,2]
[331771076,1720757468782,-651.34,0.00013897,2]
[331771077,1720757468793,-1291.4,0.00013897,2]
[331771078,1720757468804,-500.0,0.00013897,2]
[331771079,1720757468813,-947.18,0.00013897,2]
[331771080,1720757468823,-500.0,0.00013897,2]
[331771081,1720757468833,-904.15,0.00013897,2]
[331771082,1720757468842,-565.59,0.00013897,2]
[331771083,1720757468852,-500.0,0.00013897,2]
[331771084,1720757468862,-770.8,0.00013897,2]
[331771085,1720757468873,-817.67,0.00013897,2]
[331771086,1720757468882,-500.0,0.00013897,2]
[331771087,1720757468894,-895.25,0.00013897,2]
[331771088,1720757468904,-500.0,0.00013897,2]
[331771089,1720757468915,-500.0,0.00013897,2]
[331771090,1720757468924,-500.0,0.00013897,2]
[331771091,1720757468935,-500.0,0.00013897,2]
[331771092,1720757468946,-500.0,0.00013897,2]
[331771093,1720757468957,-1542.6,0.00013897,2]
[331771094,1720757468966,-500.0,0.00013897,2]
[331771095,1720757468975,-1738.7,0.00013897,2]
[331771096,1720757468986,-500.0,0.00013897,2]
[331771097,1720757468996,-500.0,0.00013897,2]
[331771098,1720757469005,-573.32,0.00013897,2]
[331771099,1720757469014,-192.54099189,0.00013897,2]
[331771100,1720757469024,-1427.99,0.00013897,2]
[331771101,1720757469032,-500.0,0.00013897,2]
[331771102,1720757469041,-500.0,0.00013897,2]
[331771103,1720757469051,-1159.29,0.00013897,2]
[331771104,1720757469060,-500.0,0.00013897,2]
[331771105,1720757469069,-500.0,0.00013897,2]
[331771106,1720757469078,-500.0,0.00013897,2]
[331771107,1720757469087,-500.0,0.00013897,2]
[331771108,1720757469097,-514.91,0.00013897,2]
[331771109,1720757469106,-948.74,0.00013897,2]
[331771110,1720757469116,-500.0,0.00013897,2]
[331771111,1720757469125,-638.45,0.00013897,2]
[331771112,1720757469134,-500.0,0.00013897,2]
[331771113,1720757469144,-1793.28,0.00013897,2]
[331771114,1720757469153,-500.0,0.00013897,2]
[331771115,1720757469163,-500.0,0.00013897,2]
[331771116,1720757469172,-893.16,0.00013897,2]
[331771117,1720757469182,-1317.99,0.00013897,2]
[331771118,1720757469191,-500.0,0.00013897,2]
[331771119,1720757469201,-799.98,0.00013897,2]
[331771120,1720757469210,-500.0,0.00013897,2]
[331771121,1720757469220,-500.0,0.00013897,2]
[331771122,1720757469229,-1352.78,0.00013897,2]
[331771123,1720757469239,-1035.5,0.00013897,2]
[331771124,1720757469248,-500.0,0.00013897,2]
[331771125,1720757469258,-738.31,0.00013897,2]
[331771126,1720757469271,-284.09282105,0.00013897,2]
[331771127,1720757469280,-500.0,0.00013897,2]
[331771128,1720757469289,-884.34,0.00013897,2]
[331771129,1720757469298,-480.98005765,0.00013897,2]
[331771130,1720757469307,-500.0,0.00013897,2]
[331771131,1720757469316,-500.0,0.00013897,2]
[331771132,1720757469325,-1025.74,0.00013897,2]
[331771133,1720757469334,-559.94,0.00013897,2]
[331771134,1720757469344,-500.0,0.00013897,2]
[331771135,1720757469353,-500.0,0.00013897,2]
[331771136,1720757469362,-754.05,0.00013897,2]
[331771137,1720757469371,-500.0,0.00013897,2]
[331771138,1720757469381,-500.0,0.00013897,2]
[331771139,1720757469390,-1338.51,0.00013897,2]
[331771140,1720757469399,-1319.14,0.00013897,2]
[331771141,1720757469408,-672.17,0.00013897,2]
[331771142,1720757469417,-500.0,0.00013897,2]
[331771143,1720757469426,-500.0,0.00013897,2]
[331771144,1720757469436,-174.64,0.00013897,2]
[331771145,1720757469445,-500.0,0.00013897,2]
[331771146,1720757469454,-748.27,0.00013897,2]
[331771147,1720757469463,-354.5,0.00013897,2]
[331771148,1720757469472,-500.0,0.00013897,2]
[331771149,1720757469482,-500.0,0.00013897,2]
[331771150,1720757469492,-500.0,0.00013897,2]
[331771151,1720757469501,-1793.06,0.00013897,2]
[331771152,1720757469510,-779.73,0.00013897,2]
[331771153,1720757469520,-500.0,0.00013897,2]
[331771154,1720757469529,-500.0,0.00013897,2]
[331771155,1720757469538,-500.0,0.00013897,2]
[331771156,1720757469548,-500.0,0.00013897,2]
[331771157,1720757469557,-500.0,0.00013897,2]
[331771158,1720757469568,-785.73,0.00013897,2]
[331771159,1720757469578,-628.91,0.00013897,2]
[331771160,1720757469588,-2440.6,0.00013897,2]
[331771161,1720757469599,-509.53,0.00013897,2]
[331771162,1720757469609,-500.0,0.00013897,2]
[331771163,1720757469619,-619.95,0.00013897,2]
[331771164,1720757469630,-500.0,0.00013897,2]
[331771165,1720757469642,-763.74,0.00013897,2]
[331771166,1720757469652,-500.0,0.00013897,2]
[331771167,1720757469662,-509.98,0.00013897,2]
[331771168,1720757469671,-3231.91,0.00013897,2]
[331771169,1720757469681,-1174.9,0.00013897,2]
[331771170,1720757469690,-910.97,0.00013897,2]
[331771171,1720757469700,-958.67,0.00013897,2]
[331771172,1720757469711,-500.0,0.00013897,2]
[331771173,1720757469720,-527.43,0.00013897,2]
[331771174,1720757469730,-2247.3,0.00013897,2]
[331771175,1720757469741,-515.55,0.00013897,2]
[331771176,1720757469751,-500.0,0.00013897,2]
[331771177,1720757469760,-500.0,0.00013897,2]
[331771178,1720757469770,-500.0,0.00013897,2]
[331771179,1720757469780,-500.0,0.00013897,2]
[331771180,1720757469789,-1319.06,0.00013897,2]
[331771181,1720757469799,-844.55,0.00013897,2]
[331771182,1720757469809,-207.03881225,0.00013897,2]
[331771183,1720757469818,-500.0,0.00013897,2]
[331771184,1720757469833,-283.69509379,0.00013897,2]
[331771185,1720757469842,-453.2,0.00013897,2]
[331771186,1720757469853,-500.0,0.00013897,2]
[331771187,1720757469862,-400.57373189,0.00013897,2]
[331771188,1720757469872,-500.0,0.00013897,2]
[331771189,1720757469882,-500.0,0.00013897,2]
[331771190,1720757469893,-500.0,0.00013897,2]
[331771191,1720757469903,-500.0,0.00013897,2]
[331771192,1720757469912,-571.0,0.00013898,2]
[331771193,1720757469922,-690.42,0.00013898,2]
[331771194,1720757469933,-500.0,0.00013898,2]
[331771195,1720757469944,-619.16,0.00013898,2]
[331771196,1720757469955,-500.0,0.00013898,2]
[331771197,1720757469966,-500.0,0.00013898,2]
[331771198,1720757469977,-500.0,0.00013898,2]
[331771199,1720757469989,-500.0,0.00013898,2]
[331771200,1720757469998,-500.0,0.00013898,2]
[331771201,1720757470008,-500.0,0.00013898,2]
[331771202,1720757470018,-500.0,0.00013898,2]
[331771203,1720757470027,-255.87,0.00013898,2]
[331771204,1720757470037,-500.0,0.00013898,2]
[331771205,1720757470047,-500.0,0.00013898,2]
[331771206,1720757470056,-712.12,0.00013898,2]
[331771207,1720757470066,-500.0,0.00013898,2]
[331771208,1720757470075,-616.17,0.00013898,2]
[331771209,1720757470085,-500.0,0.00013898,2]
[331771210,1720757470095,-585.14,0.00013898,2]
[331771211,1720757470104,-500.0,0.00013898,2]
[331771212,1720757470114,-500.0,0.00013898,2]
[331771213,1720757470123,-500.0,0.00013898,2]
[331771214,1720757470133,-813.08,0.00013898,2]
[331771215,1720757470142,-620.92,0.00013898,2]
[331771216,1720757470152,-500.0,0.00013898,2]
[331771217,1720757470162,-500.0,0.00013898,2]
[331771218,1720757470171,-500.0,0.00013898,2]
[331771219,1720757470180,-500.0,0.00013898,2]
[331771220,1720757470190,-500.0,0.00013898,2]
[331771221,1720757470199,-500.0,0.00013898,2]
[331771222,1720757470209,-500.0,0.00013898,2]
[331771223,1720757470218,-500.0,0.00013898,2]
[331771224,1720757470228,-500.0,0.00013898,2]
[331771225,1720757470238,-500.0,0.00013898,2]
[331771226,1720757470247,-500.0,0.00013898,2]
[331771227,1720757470257,-500.0,0.00013898,2]
[331771228,1720757470267,-500.0,0.00013898,2]
[331771229,1720757470276,-476.58965346,0.00013898,2]
[331771230,1720757470286,-500.0,0.00013898,2]
[331771231,1720757470298,-500.0,0.00013898,2]
[331771232,1720757470308,-500.0,0.00013898,2]
[331771233,1720757470318,-500.0,0.00013898,2]
[331771234,1720757470328,-684.88,0.00013898,2]
[331771235,1720757470337,-500.0,0.00013898,2]
[331771236,1720757470346,-564.13,0.00013898,2]
[331771237,1720757470356,-500.0,0.00013898,2]
[331771238,1720757470365,-500.0,0.00013898,2]
[331771239,1720757470375,-500.0,0.00013898,2]
[331771240,1720757470384,-494.089166,0.00013898,2]
[331771241,1720757470393,-501.74685602,0.00013898,2]
[331771242,1720757470403,-360.45746576,0.00013898,2]
[331771243,1720757470413,-500.0,0.00013898,2]
[331771244,1720757470422,-500.0,0.00013898,2]
[331771245,1720757470431,-500.0,0.00013898,2]
[331771246,1720757470441,-500.0,0.00013898,2]
[331771247,1720757470450,-500.0,0.00013898,2]
[331771248,1720757470460,-500.0,0.00013898,2]
[331771249,1720757470469,-500.0,0.00013898,2]
[331771250,1720757470478,-851.71,0.00013898,2]
[331771251,1720757470488,-500.0,0.00013898,2]
[331771252,1720757470497,-500.0,0.00013898,2]
[331771253,1720757470507,-500.0,0.00013898,2]
[331771254,1720757470516,-500.0,0.00013898,2]
[331771255,1720757470526,-500.0,0.00013898,2]
[331771256,1720757470535,-521.52540007,0.00013898,2]
[331771257,1720757470544,-500.0,0.00013898,2]
[331771258,1720757470554,-500.0,0.00013898,2]
[331771259,1720757470563,-765.82,0.00013898,2]
[331771260,1720757470573,-500.0,0.00013898,2]
[331771261,1720757470582,-500.0,0.00013898,2]
[331771262,1720757470592,-500.0,0.00013898,2]
[331771263,1720757470601,-190.27266762,0.00013898,2]
[331771264,1720757470611,-500.0,0.00013898,2]
[331771265,1720757470620,-500.0,0.00013898,2]
[331771266,1720757470630,-500.0,0.00013898,2]
[331771267,1720757470639,-500.0,0.00013898,2]
[331771268,1720757470648,-500.0,0.00013898,2]
[331771269,1720757470658,-500.0,0.00013898,2]
[331771270,1720757470667,-805.51,0.00013898,2]
[331771271,1720757470676,-656.28,0.00013898,2]
[331771272,1720757470686,-500.0,0.00013898,2]
[331771273,1720757470695,-500.0,0.00013898,2]
[331771274,1720757470704,-500.0,0.00013898,2]
[331771275,1720757470714,-500.0,0.00013898,2]
[331771276,1720757470723,-1117.65,0.00013898,2]
[331771277,1720757470733,-500.0,0.00013898,2]
[331771278,1720757470743,-500.0,0.00013898,2]
[331771279,1720757470752,-500.0,0.00013898,2]
[331771280,1720757470762,-500.0,0.00013898,2]
[331771281,1720757470771,-1568.72,0.00013898,2]
[331771282,1720757470780,-500.0,0.00013898,2]
[331771283,1720757470789,-500.0,0.00013898,2]
[331771284,1720757470799,-658.55,0.00013898,2]
[331771285,1720757470808,-1014.23,0.00013898,2]
[331771286,1720757470818,-500.0,0.00013898,2]
[331771287,1720757470827,-393.8,0.00013898,2]
[331771288,1720757470837,-500.0,0.00013898,2]
[331771289,1720757470846,-518.11,0.00013898,2]
[331771290,1720757470856,-747.47,0.00013898,2]
[331771291,1720757470865,-500.0,0.00013898,2]
[331771292,1720757470875,-671.09,0.00013898,2]
[331771293,1720757470885,-500.0,0.00013898,2]
[331771294,1720757470897,-501.72359233,0.00013898,2]
[331771295,1720757470906,-500.0,0.00013898,2]
[331771296,1720757470916,-500.0,0.00013898,2]
[331771297,1720757470926,-500.0,0.00013898,2]
[331771298,1720757470936,-656.86,0.00013898,2]
[331771299,1720757470946,-500.0,0.00013898,2]
[331771300,1720757470955,-500.0,0.00013898,2]
[331771301,1720757470967,-500.0,0.00013898,2]
[331771302,1720757470977,-500.0,0.00013898,2]
[331771303,1720757470988,-645.06,0.00013898,2]
[331771304,1720757470998,-500.0,0.00013898,2]
[331771305,1720757471008,-500.0,0.00013898,2]
[331771306,1720757471021,-500.0,0.00013898,2]
[331771307,1720757471033,-236.14,0.00013898,2]
[331771308,1720757471042,-222.11267694,0.00013898,2]
[331771309,1720757471052,-1376.3,0.00013898,2]
[331771310,1720757471062,-500.0,0.00013898,2]
[331771311,1720757471072,-500.0,0.00013898,2]
[331771312,1720757471081,-500.0,0.00013898,2]
[331771313,1720757471091,-500.0,0.00013898,2]
[331771314,1720757471101,-500.0,0.00013898,2]
[331771315,1720757471110,-1078.39,0.00013898,2]
[331771316,1720757471120,-563.95,0.00013898,2]
[331771317,1720757471130,-500.0,0.00013898,2]
[331771318,1720757471139,-1398.75,0.00013898,2]
[331771319,1720757471150,-500.0,0.00013898,2]
[331771320,1720757471159,-858.58,0.00013898,2]
[331771321,1720757471169,-500.0,0.00013898,2]
[331771322,1720757471179,-885.52,0.00013898,2]
[331771323,1720757471188,-1078.89,0.00013898,2]
[331771324,1720757471198,-666.27,0.00013898,2]
[331771325,1720757471207,-500.0,0.00013898,2]
[331771326,1720757471217,-500.0,0.00013898,2]
[331771327,1720757471227,-500.0,0.00013898,2]
[331771328,1720757471237,-727.69,0.00013898,2]
[331771329,1720757471247,-500.0,0.00013898,2]
[331771330,1720757471257,-844.07,0.00013898,2]
[331771331,1720757471267,-500.0,0.00013898,2]
[331771332,1720757471278,-500.0,0.00013898,2]
[331771333,1720757471288,-258.84,0.00013898,2]
[331771334,1720757471554,-500.0,0.00013898,2]
[331771335,1720757471567,-500.0,0.00013898,2]
[331771336,1720757471577,-995.51,0.00013898,2]
[331771337,1720757471587,-500.0,0.00013898,2]
[331771338,1720757471597,-500.0,0.00013898,2]
[331771339,1720757471607,-1177.01,0.00013898,2]
[331771340,1720757471617,-500.0,0.00013898,2]
[331771341,1720757471627,-500.0,0.00013898,2]
[331771342,1720757471637,-882.37,0.00013898,2]
[331771343,1720757471647,-948.8,0.00013898,2]
[331771344,1720757471657,-418.66,0.00013898,2]
[331771345,1720757471667,-500.0,0.00013898,2]
[331771346,1720757471676,-826.44,0.00013898,2]
[331771347,1720757471686,-500.0,0.00013898,2]
[331771348,1720757471695,-946.15,0.00013898,2]
[331771349,1720757471704,-894.94,0.00013898,2]
[331771350,1720757471714,-459.02,0.00013898,2]
[331771351,1720757471723,-512.17,0.00013898,2]
[331771352,1720757471733,-500.0,0.00013898,2]
[331771353,1720757471743,-876.89,0.00013898,2]
[331771354,1720757471753,-255.2,0.00013898,2]
[331771355,1720757471763,-643.71,0.00013898,2]
[331771356,1720757471772,-500.0,0.00013898,2]
[331771357,1720757471782,-546.11,0.00013898,2]
[331771358,1720757471792,-815.39,0.00013898,2]
[331771359,1720757471802,-618.03,0.00013898,2]
[331771360,1720757471811,-1115.77,0.00013898,2]
[331771361,1720757471821,-1022.32,0.00013898,2]
[331771362,1720757471830,-500.0,0.00013898,2]
[331771363,1720757471840,-500.0,0.00013898,2]
[331771364,1720757471849,-750.75,0.00013898,2]
[331771365,1720757471859,-649.60122937,0.00013898,2]
[331771366,1720757471869,-500.0,0.00013898,2]
[331771367,1720757471879,-500.0,0.00013898,2]
[331771368,1720757471889,-765.67,0.00013898,2]
[331771369,1720757471902,-500.0,0.00013898,2]
[331771370,1720757471911,-565.18,0.00013898,2]
[331771371,1720757471921,-260.78,0.00013898,2]
[331771372,1720757471931,-500.0,0.00013898,2]
[331771373,1720757471943,-547.1,0.00013898,2]
[331771374,1720757471953,-500.0,0.00013898,2]
[331771375,1720757471963,-500.0,0.00013898,2]
[331771376,1720757471974,-500.0,0.00013898,2]
[331771377,1720757471984,-500.0,0.00013898,2]
[331771378,1720757471994,-500.0,0.00013898,2]
[331771379,1720757472004,-500.0,0.00013898,2]
[331771380,1720757472014,-554.7,0.00013898,2]
[331771381,1720757472024,-1050.21,0.00013898,2]
[331771382,1720757472034,-256.28,0.00013898,2]
[331771383,1720757472044,-268.34,0.00013898,2]
[331771384,1720757472054,-237.74,0.00013898,2]
[331771385,1720757472064,-500.0,0.00013898,2]
[331771386,1720757472074,-1478.99,0.00013898,2]
[331771387,1720757472083,-500.0,0.00013898,2]
[331771388,1720757472093,-285.22,0.00013898,2]
[331771389,1720757472103,-500.0,0.00013898,2]
[331771390,1720757472112,-500.0,0.00013898,2]
[331771391,1720757472122,-500.0,0.00013898,2]
[331771392,1720757472132,-500.0,0.00013898,2]
[331771393,1720757472142,-500.0,0.00013898,2]
[331771394,1720757472152,-207.94,0.00013898,2]
[331771395,1720757472161,-507.47,0.00013898,2]
[331771396,1720757472171,-460.44,0.00013898,2]
[331771397,1720757472180,-500.0,0.00013898,2]
[331771398,1720757472190,-500.0,0.00013898,2]
[331771399,1720757472200,-943.58,0.00013898,2]
[331771400,1720757472209,-742.48,0.00013898,2]
[331771401,1720757472219,-809.42,0.00013898,2]
[331771402,1720757472228,-500.0,0.00013898,2]
[331771403,1720757472238,-500.0,0.00013898,2]
[331771404,1720757472248,-500.0,0.00013898,2]
[331771405,1720757472257,-659.52,0.00013898,2]
[331771406,1720757472267,-500.0,0.00013898,2]
[331771407,1720757472276,-500.0,0.00013898,2]
[331771408,1720757472286,-500.0,0.00013898,2]
[331771409,1720757472296,-800.83,0.00013898,2]
[331771410,1720757472307,-529.77,0.00013898,2]
[331771411,1720757472317,-1091.23,0.00013898,2]
[331771412,1720757472327,-500.0,0.00013898,2]
[331771413,1720757472337,-500.0,0.00013898,2]
[331771414,1720757472347,-500.0,0.00013898,2]
[331771415,1720757472356,-500.0,0.00013898,2]
[331771416,1720757472366,-500.0,0.00013898,2]
[331771417,1720757472376,-599.14,0.00013898,2]
[331771418,1720757472385,-516.96,0.00013898,2]
[331771419,1720757472395,-503.54,0.00013898,2]
[331771420,1720757472404,-500.0,0.00013898,2]
[331771421,1720757472414,-805.69,0.00013898,2]
[331771422,1720757472423,-459.2,0.00013898,2]
[331771423,1720757472432,-500.0,0.00013898,2]
[331771424,1720757472442,-586.9,0.00013898,2]
[331771425,1720757472451,-611.29,0.00013898,2]
[331771426,1720757472461,-571.12,0.00013898,2]
[331771427,1720757472471,-500.0,0.00013898,2]
[331771428,1720757472480,-500.0,0.00013898,2]
[331771429,1720757472490,-500.0,0.00013898,2]
[331771430,1720757472500,-668.24,0.00013898,2]
[331771431,1720757472509,-500.0,0.00013898,2]
[331771432,1720757472519,-500.0,0.00013898,2]
[331771433,1720757472529,-693.46,0.00013898,2]
[331771434,1720757472538,-231.08,0.00013898,2]
[331771435,1720757472548,-889.1,0.00013898,2]
[331771436,1720757472558,-500.0,0.00013898,2]
[331771437,1720757472568,-500.0,0.00013898,2]
[331771438,1720757472578,-500.0,0.00013898,2]
[331771439,1720757472588,-500.0,0.00013898,2]
[331771440,1720757472598,-433.14,0.00013898,2]
[331771441,1720757472607,-500.0,0.00013898,2]
[331771442,1720757472618,-347.68,0.00013898,2]
[331771443,1720757472628,-500.0,0.00013898,2]
[331771444,1720757472638,-500.0,0.00013898,2]
[331771445,1720757472647,-722.95,0.00013898,2]
[331771446,1720757472657,-829.01,0.00013898,2]
[331771447,1720757472667,-500.0,0.00013898,2]
[331771448,1720757472677,-500.0,0.00013898,2]
[331771449,1720757472687,-484.2,0.00013898,2]
[331771450,1720757472696,-898.52,0.00013898,2]
[331771451,1720757472706,-500.0,0.00013898,2]
[331771452,1720757472716,-848.91,0.00013898,2]
[331771453,1720757472726,-500.0,0.00013898,2]
[331771454,1720757472735,-500.0,0.00013898,2]
[331771455,1720757472745,-165.24,0.00013898,2]
[331771456,1720757472754,-500.0,0.00013898,2]
[331771457,1720757472764,-500.0,0.00013898,2]
[331771458,1720757472774,-500.0,0.00013898,2]
[331771459,1720757472783,-500.0,0.00013898,2]
[331771460,1720757472792,-419.68,0.00013898,2]
[331771461,1720757472802,-500.0,0.00013898,2]
[331771462,1720757472811,-500.0,0.00013898,2]
[331771463,1720757472821,-713.42,0.00013898,2]
[331771464,1720757472831,-500.0,0.00013898,2]
[331771465,1720757472841,-500.0,0.00013898,2]
[331771466,1720757472850,-500.0,0.00013898,2]
[331771467,1720757472860,-566.9,0.00013898,2]
[331771468,1720757472870,-500.0,0.00013898,2]
[331771469,1720757472879,-500.0,0.00013898,2]
[331771470,1720757472890,-500.0,0.00013898,2]
[331771471,1720757472902,-270.72,0.00013898,2]
[331771472,1720757472911,-500.0,0.00013898,2]
[331771473,1720757472921,-500.0,0.00013898,2]
[331771474,1720757472931,-500.0,0.00013898,2]
[331771475,1720757472941,-722.31,0.00013898,2]
[331771476,1720757472951,-500.0,0.00013898,2]
[331771477,1720757472960,-500.0,0.00013898,2]
[331771478,1720757472974,-568.96,0.00013898,2]
[331771479,1720757472984,-716.92,0.00013898,2]
[331771480,1720757472995,-398.62,0.00013898,2]
[331771481,1720757473005,-500.0,0.00013898,2]
[331771482,1720757473015,-500.0,0.00013899,2]
[331771483,1720757473024,-515.28,0.00013899,2]
[331771484,1720757473034,-500.0,0.00013899,2]
[331771485,1720757473043,-500.0,0.00013899,2]
[331771486,1720757473054,-500.0,0.00013899,2]
[331771487,1720757473065,-500.0,0.00013899,2]
[331771488,1720757473075,-500.0,0.00013899,2]
[331771489,1720757473084,-500.0,0.00013899,2]
[331771490,1720757473094,-500.0,0.00013899,2]
[331771491,1720757473104,-500.0,0.00013899,2]
[331771492,1720757473114,-500.0,0.00013899,2]
[331771493,1720757473123,-500.0,0.00013899,2]
[331771494,1720757473132,-500.0,0.00013899,2]
[331771495,1720757473142,-500.0,0.00013899,2]
[331771496,1720757473151,-500.0,0.00013899,2]
[331771497,1720757473161,-500.0,0.00013899,2]
[331771498,1720757473170,-592.04,0.00013899,2]
[331771499,1720757473180,-500.0,0.00013899,2]
[331771500,1720757473190,-500.0,0.00013899,2]
[331771501,1720757473199,-500.0,0.00013899,2]
[331771502,1720757473209,-500.0,0.00013899,2]
[331771503,1720757473219,-500.0,0.00013899,2]
[331771504,1720757473229,-500.0,0.00013899,2]
[331771505,1720757473239,-500.0,0.00013899,2]
[331771506,1720757473248,-500.0,0.00013899,2]
[331771507,1720757473258,-500.0,0.00013899,2]
[331771508,1720757473267,-500.0,0.00013899,2]
[331771509,1720757473278,-500.0,0.00013899,2]
[331771510,1720757473288,-500.0,0.00013899,2]
[331771511,1720757473297,-500.0,0.00013899,2]
[331771512,1720757473307,-761.02,0.00013899,2]
[331771513,1720757473316,-500.0,0.00013899,2]
[331771514,1720757473326,-500.0,0.00013899,2]
[331771515,1720757473336,-500.0,0.00013899,2]
[331771516,1720757473346,-500.0,0.00013899,2]
[331771517,1720757473355,-577.95,0.00013899,2]
[331771518,1720757473365,-500.0,0.00013899,2]
[331771519,1720757473375,-500.0,0.00013899,2]
[331771520,1720757473384,-500.0,0.00013899,2]
[331771521,1720757473394,-500.0,0.00013899,2]
[331771522,1720757473403,-500.0,0.00013899,2]
[331771523,1720757473412,-500.0,0.00013899,2]
[331771524,1720757473422,-500.0,0.00013899,2]
[331771525,1720757473431,-500.0,0.00013899,2]
[331771526,1720757473441,-500.0,0.00013899,2]
[331771527,1720757473451,-500.0,0.00013899,2]
[331771528,1720757473461,-500.0,0.00013899,2]
[331771529,1720757473470,-610.65,0.00013899,2]
[331771530,1720757473479,-500.0,0.00013899,2]
[331771531,1720757473489,-500.0,0.00013899,2]
[331771532,1720757473499,-500.0,0.00013899,2]
[331771533,1720757473510,-631.51,0.00013899,2]
[331771534,1720757473519,-500.0,0.00013899,2]
[331771535,1720757473529,-500.0,0.00013899,2]
[331771536,1720757473539,-599.63,0.00013899,2]
[331771537,1720757473549,-500.0,0.00013899,2]
[331771538,1720757473559,-500.0,0.00013899,2]
[331771539,1720757473569,-519.97,0.00013899,2]
[331771540,1720757473578,-750.86,0.00013899,2]
[331771541,1720757473588,-590.39,0.00013899,2]
[331771542,1720757473598,-500.0,0.00013899,2]
[331771543,1720757473608,-1070.87,0.00013899,2]
[331771544,1720757473617,-500.0,0.00013899,2]
[331771545,1720757473627,-1211.95,0.00013899,2]
[331771546,1720757473637,-634.77,0.00013899,2]
[331771547,1720757473647,-830.0,0.00013899,2]
[331771548,1720757473656,-500.0,0.00013899,2]
[331771549,1720757473666,-806.94,0.00013899,2]
[331771550,1720757473676,-500.0,0.00013899,2]
[331771551,1720757473685,-500.0,0.00013899,2]
[331771552,1720757473694,-500.0,0.00013899,2]
[331771553,1720757473704,-577.75,0.00013899,2]
[331771554,1720757473713,-500.0,0.00013899,2]
[331771555,1720757473723,-588.39250864,0.00013899,2]
[331771556,1720757473733,-500.0,0.00013899,2]
[331771557,1720757473743,-545.34,0.00013899,2]
[331771558,1720757473753,-340.62,0.00013899,2]
[331771559,1720757473763,-918.58,0.00013899,2]
[331771560,1720757473772,-500.0,0.00013899,2]
[331771561,1720757473782,-500.0,0.00013899,2]
[331771562,1720757473792,-500.0,0.00013899,2]
[331771563,1720757473801,-500.0,0.00013899,2]
[331771564,1720757473811,-350.7,0.00013899,2]
[331771565,1720757473821,-500.0,0.00013899,2]
[331771566,1720757473830,-500.0,0.00013899,2]
[331771567,1720757473840,-545.77,0.00013899,2]
[331771568,1720757473849,-878.4,0.00013899,2]
[331771569,1720757473858,-907.07,0.00013899,2]
[331771570,1720757473868,-1060.58,0.00013899,2]
[331771571,1720757473937,-590.49,0.00013899,2]
[331771572,1720757473946,-539.72,0.00013899,2]
[331771573,1720757473956,-644.29,0.00013899,2]